Cogmind - Beta 14 @@@ ROGUE MODE // 2024.11.01 @ 17:03:42 Player: 7604 Result: Destroyed by S-27 Virus with Autogun Performance ------------- Evolutions (3) 1500 Regions Visited (12) 2400 Robots Destroyed (73) 365 Value Destroyed (2384) 2384 Prototype IDs (39) 780 Alien Tech Used (0) 0 Bonus (1077) 1077 TOTAL SCORE: 8506 Bonus ------- High Alert Combat Kills 22 Follower Combat Kills 455 Aligned with FarCom 300 Met Data Miner 300 Cogmind --------- Core Integrity 0/700 Matter 300/300 Energy 84/100 System Corruption 2% Temperature Cool (1) Movement Core (50) Location -6/Proximity Caves Parts ------- > --- POWER (1) -------- (None) > --- PROPULSION (4) --- (None) > --- UTILITY (6) ------ Hacking Suite Makeshift Hacking Suite Improved Hacking Suite System Shield > --- WEAPON (2) ------- (None) > --- INVENTORY (5) ---- Micro Nuclear Core ECM Suite Improved Light Armor Plating Improved Grenade Launcher Spear Peak State ------------ > --- POWER ------------ Improved Deuterium Engine > --- PROPULSION ------- Carbon-fiber Leg VSS Leg Potential Leg Potential Leg > --- UTILITY ---------- Improved Cooling System High-capacity Storage Unit Hardened Medium Armor Plating Hardened Medium Armor Plating Medium Insulated Plating System Shield > --- WEAPON ----------- Beam Rifle Gauss Cannon > --- INVENTORY -------- Improved Ion Engine Deuterium Engine VTOL Module Cesium-ion Thruster Xenon Bombardment Thruster Heat Sink Improved Heat Sink Medium Storage Unit Improved Terrain Scan Processor Transmission Jammer ECM Suite Hardened Light Armor Plating Improved Light Armor Plating Improved Light Armor Plating Improved Medium Armor Plating Medium Reactive Plating Hacking Suite System Shield Gauss Rifle Improved Grenade Launcher [Rating: 59] Favorites ----------- Power Light Nuclear Core Engine Deuterium Engine Power Core Light Nuclear Core Propulsion Potential Leg Leg Potential Leg Flight Unit Xenon Bombardment Thruster Utility Improved Light Armor Plating Device Seismic Detector Storage Medium Storage Unit Processor Signal Interpreter Hackware System Shield Protection Improved Light Armor Plating Weapon Particle Gun Energy Gun Particle Gun Ballistic Gun Gauss Rifle Ballistic Cannon Heavy Assault Cannon Special Weapon Remote Datajack Slashing Weapon Katana Piercing Weapon Spear Build | -11 -10 -10 -10 -9 -8 -7 -7 -7 -7 -7 -7 -6 ------- Run | Yrd Mat Min Exi Min Mat Fac Was Fac Low Low Dat Pro Slots Evolved 6 | . . . . . 4 2 . . . . . . Power . | . . . . . . . . . . . . . Propulsion 2 | . . . . . 1 1 . . . . . . Utility 4 | . . . . . 3 1 . . . . . . Weapon . | . . . . . . . . . . . . . Parts Attached 115 | 7 9 1 5 4 32 36 1 15 2 . . 3 Power 20 | 1 2 . . 3 7 4 . 1 . . . 2 Engine 13 | 1 1 . . 3 5 3 . . . . . . Core 7 | . 1 . . . 2 1 . 1 . . . 2 Reactor . | . . . . . . . . . . . . . Propulsion 30 | 2 2 1 2 . 7 8 . 7 1 . . . Treads . | . . . . . . . . . . . . . Leg 18 | 2 2 1 2 . 7 4 . . . . . . Wheel . | . . . . . . . . . . . . . Hover . | . . . . . . . . . . . . . Flight 12 | . . . . . . 4 . 7 1 . . . Utility 44 | 2 1 . 3 . 16 15 1 4 1 . . 1 Device 12 | 1 . . 1 . 6 4 . . . . . . Storage 5 | 1 1 . 2 . . 1 . . . . . . Processor 1 | . . . . . 1 . . . . . . . Hackware 8 | . . . . . . 3 . 3 1 . . 1 Protection 18 | . . . . . 9 7 1 1 . . . . Artifact . | . . . . . . . . . . . . . Weapon 21 | 2 4 . . 1 2 9 . 3 . . . . Energy Gun 8 | 2 3 . . 1 1 1 . . . . . . Energy Cannon . | . . . . . . . . . . . . . Ballistic Gun 3 | . 1 . . . . 2 . . . . . . Ballistic Cannon 7 | . . . . . 1 4 . 2 . . . . Launcher . | . . . . . . . . . . . . . Special Weapon 1 | . . . . . . 1 . . . . . . Impact Weapon . | . . . . . . . . . . . . . Slashing Weapon 1 | . . . . . . 1 . . . . . . Piercing Weapon 1 | . . . . . . . . 1 . . . . Special Melee Weapon . | . . . . . . . . . . . . . Unidentified Prototypes 2 | . . . . . 1 1 . . . . . . Parts Lost 22 | . 2 . . 1 3 6 . 3 2 . . 5 Power 4 | . 1 . . 1 . 1 . . . . . 1 Propulsion 10 | . . . . . . 3 . 2 2 . . 3 Utility 6 | . . . . . 3 1 . 1 . . . 1 Weapon 2 | . 1 . . . . 1 . . . . . . Highest Loss Streak 5 | . 2 . . 1 2 5 . 2 1 . . 3 To Critical Strikes . | . . . . . . . . . . . . . Average Slot Usage (%) 93 | . 99 100 100 99 91 91 100 94 76 69 69 63 Engine 4 | . 3 . . 12 5 5 7 2 . . . . Core 5 | . 9 14 14 1 3 1 . 4 7 7 7 2 Leg 19 | . 28 28 28 28 26 16 . . . . . . Flight 7 | . . . . . . 7 30 29 26 23 23 17 Device 11 | . 14 14 14 14 15 7 7 7 7 7 7 7 Storage 9 | . 14 14 14 14 9 7 7 7 7 7 7 7 Hackware 7 | . . . . . . 11 23 22 18 23 23 27 Protection 10 | . . . . . 18 18 7 7 3 . . . Energy Gun 10 | . 25 28 28 28 4 3 . . . . . . Ballistic Cannon 3 | . . . . . 6 5 7 4 . . . . Slashing Weapon 1 | . . . . . . 1 7 4 . . . . Peak Build Rating 59 | 7 11 11 29 29 46 59 40 53 43 34 34 37 Average Rating 34 | 5 9 11 22 28 41 49 40 42 37 34 34 30 On Entrance 27 | . 7 11 11 29 29 46 40 40 41 34 34 34 Naked Turns . | . . . . . . . . . . . . . Heaviest Build 87 | 11 21 21 51 54 82 87 23 24 22 17 17 17 Greatest Support 87 | 20 20 20 60 60 73 87 23 24 23 17 17 17 Greatest Overweight (x) 7 | 1 1 1 1 . 2 1 . 7 1 . . 1 Average Overweight (x) . | . . 1 . . . . . . . . . . Largest Inventory Capacity 20 | 8 10 10 20 20 20 20 10 10 10 10 10 10 Average Capacity 14 | 7 9 10 13 20 20 17 10 10 10 10 10 9 Most Carried 20 | 2 10 10 11 13 20 20 9 10 10 10 10 10 Average Carried 13 | 1 8 10 10 12 18 16 9 9 9 10 10 9 Final Capacity 20 | 8 10 10 20 20 20 10 10 10 10 10 10 5 Final Carried 20 | 2 10 10 10 13 20 9 9 9 10 10 10 5 Class Distribution -------------------- 49% | Mutant 26% | Hacker-Sprinter 23% | Scavenger-Mutant Dominant Class ---------------- Scavenger-Mutant | -10/Materials Scavenger-Mutant | -10/Mines Mutant | -10/Exiles Mutant | -9/Mines Mutant | -8/Materials Mutant | -7/Factory Hacker-Sprinter | -7/Waste Hacker-Sprinter | -7/Factory Hacker-Sprinter | -7/Lower Caves Hacker-Sprinter | -7/Lower Caves Hacker-Sprinter | -7/Data Miner Hacker-Sprinter | -6/Proximity Caves Resources | -11 -10 -10 -10 -9 -8 -7 -7 -7 -7 -7 -7 -6 ----------- Run | Yrd Mat Min Exi Min Mat Fac Was Fac Low Low Dat Pro Matter Collected 2823 | 263 157 10 50 40 1007 825 106 253 82 10 . 20 Remotely . | . . . . . . . . . . . . . Salvage Created 2052 | 23 450 105 . 113 939 312 . 110 . . . . Parts 114 | 3 29 2 . 5 53 15 . 7 . . . . Haulers Intercepted 3 | . . . . . 3 . . . . . . . Recyclers Shooed 2 | . 1 . . . . . . 1 . . . . Parts Field Recycled . | . . . . . . . . . . . . . Retrieved Matter . | . . . . . . . . . . . . . Parts Self-Destructed . | . . . . . . . . . . . . . Prevented 1 | . . . . . . . . . 1 . . . Kills | -11 -10 -10 -10 -9 -8 -7 -7 -7 -7 -7 -7 -6 ------- Run | Yrd Mat Min Exi Min Mat Fac Was Fac Low Low Dat Pro Combat Hostiles Destroyed 48 | . 10 3 . 3 19 10 . 3 . . . . Guns 17 | . 9 2 . 3 2 1 . . . . . . Cannons 27 | . . . . . 16 8 . 3 . . . . AOE 1 | . 1 . . . . . . . . . . . Classes Destroyed 15 | 1 2 . . . 8 3 . 1 . . . . Worker 2 | . . . . . 2 . . . . . . . Builder 4 | . . . . . 2 2 . . . . . . Tunneler 1 | 1 . . . . . . . . . . . . Hauler 3 | . . . . . 3 . . . . . . . Recycler 3 | . . . . . 3 . . . . . . . Mechanic 2 | . . . . . 1 1 . . . . . . Operator 1 | . . . . . . . . 1 . . . . Watcher 9 | . 3 . . . 4 1 . 1 . . . . Swarmer 10 | . . . . . 6 3 . 1 . . . . Grunt 26 | . 10 3 . 3 7 1 . 2 . . . . Brawler 1 | . . . . . 1 . . . . . . . Sentry 6 | . . . . . 5 1 . . . . . . Demolisher 2 | . . . . . . 2 . . . . . . Hunter 1 | . . . . . . 1 . . . . . . Programmer 2 | . . . . . . 2 . . . . . . Best Kill Streak 7 | 1 7 1 . 3 7 3 . 2 . . . . Combat Bots Only 7 | . 7 1 . 3 4 3 . 2 . . . . Max Kills in Single Turn 2 | 1 1 1 . 1 2 1 . 1 . . . . Gunslinging . | . . . . . . . . . . . . . Exploded 1 | . 1 . . . . . . . . . . . Melee . | . . . . . . . . . . . . . Uniques/NPCs Destroyed . | . . . . . . . . . . . . . Combat | -11 -10 -10 -10 -9 -8 -7 -7 -7 -7 -7 -7 -6 -------- Run | Yrd Mat Min Exi Min Mat Fac Was Fac Low Low Dat Pro Hostile Shots Fired 596 | . 57 27 . 18 110 247 . 37 33 12 . 55 Missed 207 | . 11 8 . 11 29 89 . 22 13 4 . 20 Damage Taken 5323 | . 605 277 . 82 1045 2079 . 254 268 139 . 574 Core 959 | . 137 71 . . 51 206 . 26 47 57 . 364 Absorbed by Shields . | . . . . . . . . . . . . . Ignored by Resistances 202 | . . . . . 9 193 . . . . . . Regen/Repaired (Parts) 415 | . 79 . . . . 155 175 6 . . . . Core Remaining (%) 68 | 100 . . . 16 90 . . . . . . . Volleys Fired 271 | 4 32 12 . 8 102 67 16 30 . . . . Largest 2 | 2 2 2 . 2 2 2 1 1 . . . . Hottest 130 | 80 115 115 . 115 130 104 48 48 . . . . Shots Fired 344 | 8 63 24 . 16 111 76 16 30 . . . . Gun 149 | 8 63 24 . 16 18 20 . . . . . . Cannon 195 | . . . . . 93 56 16 30 . . . . Launcher . | . . . . . . . . . . . . . Special . | . . . . . . . . . . . . . Kinetic 226 | . 20 . . . 93 67 16 30 . . . . Thermal 110 | 8 35 24 . 16 18 9 . . . . . . Explosive . | . . . . . . . . . . . . . Electromagnetic 8 | . 8 . . . . . . . . . . . Robot Hit Streak 19 | 2 14 9 . 12 19 9 9 9 . . . . Robot Miss Streak 6 | 2 3 1 . 2 6 3 3 2 . . . . Penetration Max 1 | . . . . . 1 . . . . . . . Secondary Targets 2 | . 1 1 . . . . . . . . . . Max Gunslinging Chain 1 | . 1 1 . . . . . . . . . . Shots Hit Robots 237 | 4 43 20 . 12 74 46 13 16 9 . . . Core Hits 98 | 1 25 6 . 6 31 20 1 7 1 . . . Critical Kills . | . . . . . . . . . . . . . Critical Parts Destroyed 1 | . . . . . . 1 . . . . . . Critical Strikes 13 | . 3 . . 1 6 1 . 2 . . . . Burn 2 | . 1 . . 1 . . . . . . . . Destroy 1 | . . . . . . 1 . . . . . . Blast 8 | . . . . . 6 . . 2 . . . . Corrupt 2 | . 2 . . . . . . . . . . . Melee Attacks 35 | . . . . . . 15 . 10 10 . . . Impact . | . . . . . . . . . . . . . Slashing 22 | . . . . . . 15 . 7 . . . . Piercing 13 | . . . . . . . . 3 10 . . . Sneak Attacks 3 | . . . . . . 2 . 1 . . . . Combat Hostiles . | . . . . . . . . . . . . . Follow-up Attacks . | . . . . . . . . . . . . . Damage Inflicted 7493 | 43 668 287 . 168 3733 1423 374 514 283 . . . Guns 1488 | 43 552 287 . 168 242 196 . . . . . . Cannons 5187 | . . . . . 3419 1044 374 350 . . . . Explosions 116 | . 116 . . . . . . . . . . . Melee 624 | . . . . . . 177 . 164 283 . . . Ramming 78 | . . . . . 72 6 . . . . . . Kinetic 5435 | . 157 . . . 3419 1135 374 350 . . . . Thermal 1289 | 43 444 287 . 168 242 105 . . . . . . Explosive . | . . . . . . . . . . . . . Electromagnetic 67 | . 67 . . . . . . . . . . . Impact . | . . . . . . . . . . . . . Slashing 341 | . . . . . . 177 . 164 . . . . Piercing 283 | . . . . . . . . . 283 . . . Highest Corruption 5 | . . . . . 5 . . . 2 2 2 2 Average Corruption 3 | . . . . . 5 . . . 1 2 2 2 Corruption Purged . | . . . . . . . . . . . . . Corruption Blocked . | . . . . . . . . . . . . . Effects 33 | . . . . . 25 . . . 2 5 1 . Message Errors 6 | . . . . . 5 . . . . 1 . . Matter Fused 11 | . . . . . 8 . . . 1 1 1 . Heat Flow Errors 4 | . . . . . 3 . . . 1 . . . Energy Discharges 1 | . . . . . 1 . . . . . . . Parts Fused 2 | . . . . . 1 . . . . 1 . . Data Loss (minor) 7 | . . . . . 5 . . . . 2 . . Data Loss (major) 1 | . . . . . 1 . . . . . . . Alerts 1 | . . . . . 1 . . . . . . . Overload Shots . | . . . . . . . . . . . . . Overflow Damage 653 | . 34 . . . 454 76 . 79 10 . . . Projectiles 500 | . . . . . 454 46 . . . . . . Explosions 34 | . 34 . . . . . . . . . . . Melee 119 | . . . . . . 30 . 79 10 . . . Knockbacks 37 | . . . . . 24 9 . 4 . . . . Impact . | . . . . . . . . . . . . . Kinetic 32 | . . . . . 20 9 . 3 . . . . Secondary 5 | . . . . . 4 . . 1 . . . . Self-Inflicted Damage 39 | . 39 . . . . . . . . . . . Shots 1 | . 1 . . . . . . . . . . . Rammed . | . . . . . . . . . . . . . Targets Rammed 8 | . . . . . 7 1 . . . . . . Kicked 8 | . . . . . 7 1 . . . . . . Crushed . | . . . . . . . . . . . . . Highest Temperature 295 | 54 218 295 . 164 201 8 44 148 206 2 . . Average Temperature 67 | 25 68 162 . 87 44 3 22 40 74 2 . . Received Heat Transfer 1317 | . 354 183 . 42 405 177 . 75 33 36 . 12 Siege Activations . | . . . . . . . . . . . . . Robots Corrupted . | . . . . . . . . . . . . . Combat Hostiles . | . . . . . . . . . . . . . Parts Fried . | . . . . . . . . . . . . . Impact Corruptions 1 | . . . . . 1 . . . . . . . Robots Melted 3 | . . 1 . . 1 1 . . . . . . Combat Hostiles 3 | . . 1 . . 1 1 . . . . . . Parts Melted 10 | 1 3 1 . 1 3 1 . . . . . . Heat Transferred 3252 | 100 1080 740 . 518 555 259 . . . . . . Parts Sabotaged . | . . . . . . . . . . . . . Parts Stolen . | . . . . . . . . . . . . . Parts Stripped . | . . . . . . . . . . . . . Power Chain Reactions 1 | . 1 . . . . . . . . . . . Alert | -11 -10 -10 -10 -9 -8 -7 -7 -7 -7 -7 -7 -6 ------- Run | Yrd Mat Min Exi Min Mat Fac Was Fac Low Low Dat Pro Peak Influence 704 | 5 347 95 . 90 366 194 87 704 . . . . Initial 136 | . 3 . . . 35 136 13 60 . . . . Average 141 | 1 151 63 . 68 153 84 51 321 . . . . Maximum Alert Level 3 | . 1 . . . 1 . . 3 . . . . Low Security (%) 77 | 100 73 100 . 100 66 100 100 32 . . . . Level 1 17 | . 26 . . . 33 . . 26 . . . . Level 2 5 | . . . . . . . . 39 . . . . Level 3 . | . . . . . . . . . . . . . Level 4 . | . . . . . . . . . . . . . Level 5 . | . . . . . . . . . . . . . High Security . | . . . . . . . . . . . . . Max Security . | . . . . . . . . . . . . . Squads Dispatched 18 | . . . . . 2 6 . 9 . 1 . . Investigation 6 | . . . . . 2 1 . 3 . . . . Extermination 3 | . . . . . . 3 . . . . . . Reinforcement 8 | . . . . . . 2 . 6 . . . . Assault 1 | . . . . . . . . . . 1 . . Garrison . | . . . . . . . . . . . . . Intercept . | . . . . . . . . . . . . . Searches Triggered . | . . . . . . . . . . . . . Construction Impeded 1 | . . . . . . 1 . . . . . . Haulers Reinforced . | . . . . . . . . . . . . . Active Scanning Responses . | . . . . . . . . . . . . . Cargo Convoy Interrupts 1 | . . . . . . 1 . . . . . . Stealth | -11 -10 -10 -10 -9 -8 -7 -7 -7 -7 -7 -7 -6 --------- Run | Yrd Mat Min Exi Min Mat Fac Was Fac Low Low Dat Pro Distress Signals 7 | . 1 . . . 3 1 . 2 . . . . Communications Jammed . | . . . . . . . . . . . . . Distress Signals . | . . . . . . . . . . . . . Times Spotted 130 | . 18 3 . 9 33 15 6 19 7 10 . 10 Peak Tracking Total 10 | . 9 2 . 6 5 4 2 4 5 10 . 6 Tactical Retreats 16 | . 1 . . . 3 1 . 4 2 3 . 2 Traps | -11 -10 -10 -10 -9 -8 -7 -7 -7 -7 -7 -7 -6 ------- Run | Yrd Mat Min Exi Min Mat Fac Was Fac Low Low Dat Pro Traps Triggered 10 | . . . . . 5 2 . 3 . . . . Indirectly . | . . . . . . . . . . . . . Trap Hack Attempts . | . . . . . . . . . . . . . Triggered . | . . . . . . . . . . . . . Disarmed . | . . . . . . . . . . . . . Reprogrammed . | . . . . . . . . . . . . . Reused . | . . . . . . . . . . . . . Traps Extracted . | . . . . . . . . . . . . . Installed . | . . . . . . . . . . . . . Triggered 3 | . . . . . . 3 . . . . . . Machines | -11 -10 -10 -10 -9 -8 -7 -7 -7 -7 -7 -7 -6 ---------- Run | Yrd Mat Min Exi Min Mat Fac Was Fac Low Low Dat Pro Machines Disabled 23 | . 2 . . 1 1 . . 19 . . . . Max in Single Turn 1 | . 1 . . 1 1 . . . . . . . Garrison Access 3 | . . . . . 1 . . 2 . . . . Machines Repaired . | . . . . . . . . . . . . . Machines Dismantled . | . . . . . . . . . . . . . Machines Sabotaged . | . . . . . . . . . . . . . Overloaded Fab Kills . | . . . . . . . . . . . . . Hacking | -11 -10 -10 -10 -9 -8 -7 -7 -7 -7 -7 -7 -6 --------- Run | Yrd Mat Min Exi Min Mat Fac Was Fac Low Low Dat Pro Machines Accessed 51 | . 8 . 1 1 7 16 . 14 . . 4 . Terminals 28 | . 5 . . 1 4 10 . 8 . . . . Fabricators 3 | . . . . . . 1 . 2 . . . . Repair Stations 2 | . 1 . . . . 1 . . . . . . Recycling Units 6 | . 2 . . . 1 2 . 1 . . . . Scanalyzers 4 | . . . . . 1 2 . 1 . . . . Garrison Access 3 | . . . . . 1 . . 2 . . . . Total Hacks 182 | . 28 . 1 1 16 61 . 48 . . 27 . Successful 113 | . 15 . 1 1 9 30 . 30 . . 27 . Failed 66 | . 12 . . . 7 30 . 17 . . . . Catastrophic 9 | . 2 . . . 1 4 . 2 . . . . Database Lockouts 3 | . 1 . . . . 1 . 1 . . . . Manual 80 | . 16 . 1 2 10 28 . 23 . . . . Terminals 113 | . 22 . . 1 12 41 . 37 . . . . Fabricators 7 | . . . . . . 2 . 5 . . . . Repair Stations 6 | . 2 . . . . 4 . . . . . . Recycling Units 9 | . 4 . . . 1 3 . 1 . . . . Scanalyzers 15 | . . . . . 2 11 . 2 . . . . Garrison Access 4 | . . . . . 1 . . 3 . . . . Terminal Hacks 64 | . 7 . 1 1 3 10 . 15 . . 27 . Record 11 | . . . . . . . . . . . 11 . Part Schematic 13 | . . . . . . 1 . 4 . . 8 . Robot Schematic 6 | . . . . . . 1 . . . . 5 . Robot Analysis 4 | . 2 . . 1 1 . . . . . . . Prototype ID Bank 4 | . . . . . 1 . . . . . 3 . Branch Access Points 1 | . . . . . . . . 1 . . . . Terminal Index 3 | . . . . . 1 1 . 1 . . . . Alert Level 3 | . . . . . . . . 3 . . . . Unreport Threat 6 | . 1 . . . . 1 . 4 . . . . Locate Traps 3 | . 2 . . . . 1 . . . . . . Dispatch Records 1 | . . . . . . 1 . . . . . . Security Status 1 | . 1 . . . . . . . . . . . Recall Extermination 1 | . . . . . . 1 . . . . . . Recall Reinforcements 1 | . . . . . . 1 . . . . . . Hauler Manifests 1 | . 1 . . . . . . . . . . . Registered Components 1 | . . . . . . 1 . . . . . . Registered Prototypes 2 | . . . . . . 1 . 1 . . . . Zone Layout 1 | . . . . . . . . 1 . . . . Derelict Proto ID Bank 1 | . . . 1 . . . . . . . . . Fabricator Hacks 7 | . . . . . . 2 . 5 . . . . Network Status 1 | . . . . . . . . 1 . . . . Load Schematic 3 | . . . . . . 1 . 2 . . . . Build 3 | . . . . . . 1 . 2 . . . . Repair Station Hacks 4 | . 2 . . . . 2 . . . . . . Scan Component 2 | . 1 . . . . 1 . . . . . . Repair 2 | . 1 . . . . 1 . . . . . . Recycling Unit Hacks 4 | . 1 . . . 1 1 . 1 . . . . Retrieve Components 4 | . 1 . . . 1 1 . 1 . . . . Scanalyzer 13 | . . . . . 1 10 . 2 . . . . Insert Component 7 | . . . . . 1 5 . 1 . . . . Analyze 6 | . . . . . . 5 . 1 . . . . Garrison Access Hacks 3 | . . . . . 1 . . 2 . . . . Seal Access 3 | . . . . . 1 . . 2 . . . . Unauthorized Hacks 18 | . 5 . . . 3 5 . 5 . . . . Terminals 18 | . 5 . . . 3 5 . 5 . . . . Track 2 | . 2 . . . . . . . . . . . Assimilate 4 | . . . . . . 1 . 3 . . . . Botnet 9 | . 2 . . . 2 3 . 2 . . . . Operators 3 | . 1 . . . 1 1 . . . . . . Fabricators . | . . . . . . . . . . . . . Repair Stations . | . . . . . . . . . . . . . Recycling Units . | . . . . . . . . . . . . . Scanalyzers . | . . . . . . . . . . . . . Garrison Access . | . . . . . . . . . . . . . Data Cores Recovered . | . . . . . . . . . . . . . Used . | . . . . . . . . . . . . . Hacking Detections 38 | . 7 . . 1 6 14 . 10 . . . . Full Trace Events 4 | . . . . . 1 1 . 2 . . . . Feedback Events . | . . . . . . . . . . . . . Feedback Blocked . | . . . . . . . . . . . . . Robot Schematics Acquired 6 | . . . . . . 1 . . . . 5 . Robots Built . | . . . . . . . . . . . . . Authchips . | . . . . . . . . . . . . . Time . | . . . . . . . . . . . . . Total Robot Build Rating . | . . . . . . . . . . . . . Part Schematics Acquired 19 | . . . . . . 6 . 5 . . 8 . Parts Built 4 | . . . . . . 2 . 2 . . . . Authchips . | . . . . . . . . . . . . . Time 184 | . . . . . . 42 . 142 . . . . Total Part Build Rating 18 | . . . . . . 8 . 10 . . . . Parts Repaired 2 | . 1 . . . . 1 . . . . . . Time 45 | . 26 . . . . 19 . . . . . . Parts Recycled . | . . . . . . . . . . . . . Recycled Matter . | . . . . . . . . . . . . . Retrieved Matter . | . . . . . . . . . . . . . Retrieved Components 21 | . . . . . 10 10 . 1 . . . . Parts Scanalyzed 6 | . . . . . . 5 . 1 . . . . Part Schematics Acquired 6 | . . . . . . 5 . 1 . . . . Parts Damaged . | . . . . . . . . . . . . . Bothacking | -11 -10 -10 -10 -9 -8 -7 -7 -7 -7 -7 -7 -6 ------------ Run | Yrd Mat Min Exi Min Mat Fac Was Fac Low Low Dat Pro Used RIF Installer . | . . . . . . . . . . . . . Robots Hacked . | . . . . . . . . . . . . . Non-combat . | . . . . . . . . . . . . . Combat . | . . . . . . . . . . . . . Robot Hacks Applied . | . . . . . . . . . . . . . Relay Couplers Released . | . . . . . . . . . . . . . Fabnet Peak Effective % . | . . . . . . . . . . . . . Robots Rewired . | . . . . . . . . . . . . . Allies Hacked 1 | . . . . . . . . . 1 . . . Hacks Repelled . | . . . . . . . . . . . . . Allies | -11 -10 -10 -10 -9 -8 -7 -7 -7 -7 -7 -7 -6 -------- Run | Yrd Mat Min Exi Min Mat Fac Was Fac Low Low Dat Pro Total Allies 25 | . . . . . . 1 20 3 . . . 1 Largest Group 20 | . . . . . . 1 20 20 1 . . 1 Highest-Rated Group 506 | . . . . . . 26 506 506 26 . . 96 Highest-Rated Ally 96 | . . . . . . 26 35 35 26 . . 96 Total Orders . | . . . . . . . . . . . . . Ally Attacks 221 | . . . . . . . 90 125 . . . 6 Total Damage 4910 | . . . . . . . 3026 1706 . . . 178 Kills 20 | . . . . . . . 6 14 . . . . Allies Corrupted . | . . . . . . . . . . . . . Allies Melted 1 | . . . . . . . . . 1 . . . Intel | -11 -10 -10 -10 -9 -8 -7 -7 -7 -7 -7 -7 -6 ------- Run | Yrd Mat Min Exi Min Mat Fac Was Fac Low Low Dat Pro Robot Analysis Total 4 | . 2 . . 1 1 . . . . . . . Derelict Logs Recovered 6 | . . 1 . 1 . . . . 1 1 . 2 Drone Launches . | . . . . . . . . . . . . . Drone Recoveries . | . . . . . . . . . . . . . Exploration | -11 -10 -10 -10 -9 -8 -7 -7 -7 -7 -7 -7 -6 ------------- Run | Yrd Mat Min Exi Min Mat Fac Was Fac Low Low Dat Pro Turns Passed 7396 | 93 1010 321 607 262 1698 1913 148 828 198 191 27 100 Spaces Moved 8176 | 59 459 145 539 248 1080 2043 275 1895 450 611 94 278 Core 6 | 5 . . . . . . . 1 . . . . Treads . | . . . . . . . . . . . . . Legs 3344 | 54 459 145 539 248 1080 819 . . . . . . Wheels . | . . . . . . . . . . . . . Hover . | . . . . . . . . . . . . . Flight 4826 | . . . . . . 1224 275 1894 450 611 94 278 Fastest Speed 26 | 50 120 190 90 45 60 29 29 27 26 29 29 29 Average Speed 68 | 117 165 190 110 85 102 75 29 28 28 29 29 32 Slowest Speed 400 | 120 190 190 190 90 250 180 29 400 99 29 29 100 Overloaded Moves 31 | . . . . 23 3 5 . . . . . . Propulsion Burnouts . | . . . . . . . . . . . . . Robots Hopped 13 | . . . . . . 4 . 3 . 6 . . Cave-ins Triggered . | . . . . . . . . . . . . . Exploration Rate (%) 55 | 4 84 26 91 47 47 41 95 58 60 57 75 37 Regions Visited 12 Branch Regions 7 Pre-discovered Areas 2 | . . . . 1 . . . . . . 1 . Known Exits Taken 3 | . . 1 . . . . . 1 1 . . . Unknown Exits Taken 7 | 1 1 . 1 1 1 . . . . 1 1 . Scrap Searched 10 | . . 1 . 2 . . . . 3 2 . 2 Spaces Dug 35 | . . . . . 9 13 . 13 . . . . Terrain Destroyed 87 | . 2 . . . 39 29 1 16 . . . . Melee 17 | . . . . . . 11 . 6 . . . . Projectile 68 | . . . . . 39 18 1 10 . . . . AOE 2 | . 2 . . . . . . . . . . . Terrain Rammed . | . . . . . . . . . . . . . Walls Destroyed . | . . . . . . . . . . . . . Machines Disabled . | . . . . . . . . . . . . . Actions | -11 -10 -10 -10 -9 -8 -7 -7 -7 -7 -7 -7 -6 --------- Run | Yrd Mat Min Exi Min Mat Fac Was Fac Low Low Dat Pro Total 9520 | 71 648 167 549 279 1518 2318 326 2135 506 618 93 292 Wait 759 | . 137 9 . 18 258 93 35 149 43 14 . 3 Move 8140 | 58 458 144 538 247 1079 2036 274 1888 449 598 93 278 Hop 12 | . . . . . . 3 . 3 . 6 . . Pick Up 46 | 2 8 . 1 . 16 11 . 8 . . . . Fast Attach 40 | 7 1 . . 3 14 11 . 2 1 . . 1 Attach 32 | . 2 . . . 10 14 . 3 1 . . 2 Detach 29 | . 1 . . 2 8 11 . 3 2 . . 2 Swap 43 | . 6 1 5 1 8 11 1 10 . . . . Drop 69 | . 3 1 5 . 16 27 . 11 . . . 6 Fire 271 | 4 32 12 . 8 102 67 16 30 . . . . Melee 35 | . . . . . . 15 . 10 10 . . . Ram . | . . . . . . . . . . . . . Kick 8 | . . . . . 7 1 . . . . . . Crush . | . . . . . . . . . . . . . Escape Stasis 36 | . . . . . . 18 . 18 . . . . Rewire . | . . . . . . . . . . . . . Trap . | . . . . . . . . . . . . . Miscellaneous . | . . . . . . . . . . . . . Route ------- -11/Scrapyard -10/Materials (discovered 5 exits: [*Mat x3] / [*Min x2]) -10/Mines (discovered 3 exits: [*Mat x2] / *Exi) -10/Exiles -9/Mines -8/Materials -7/Factory -7/Waste -7/Factory (discovered 4 exits: [*Fac x2] / *Low x2) -7/Lower Caves -7/Lower Caves -7/Data Miner -6/Proximity Caves History --------- Turn | Location | Event 4 | -11/Scrapyard | Discovered new exit (range 16) 94 | -11/Scrapyard | Entered Materials 269 | -10/Materials | Destroyed 7 combat bots 303 | -10/Materials | Build established: Mutant 333 | -10/Materials | Discovered new exit (range 6) 475 | -10/Materials | Discovered new exit (range 14) 619 | -10/Materials | Core integrity fell below 50% 703 | -10/Materials | Build established: Scavenger-Mutant 754 | -10/Materials | Discovered new exit (range 15) 769 | -10/Materials | Discovered new exit (range 16) 878 | -10/Materials | Repaired Aluminum Leg? 908 | -10/Materials | Central database locked down 927 | -10/Materials | Discovered new exit (range 6) 1104 | -10/Materials | Entered Mines 1218 | -10/Mines | Identified exit to Exiles 1298 | -10/Mines | Discovered new exit (range 9) 1321 | -10/Mines | Deemed a non-threat by the Exiles lab entrance 1366 | -10/Mines | Discovered new exit (range 5) 1386 | -10/Mines | Core integrity fell below 20% 1425 | -10/Mines | Entered Exiles 1473 | -10/Exiles | Met 8R-AWN 1503 | -10/Exiles | Met EX-HEX 1557 | -10/Exiles | Met EX-BIN 1583 | -10/Exiles | Aligned with FarCom system 1585 | -10/Exiles | Given EX-Vault access code 1629 | -10/Exiles | Opened EX-Vault 1640 | -10/Exiles | Found Potential Leg 1643 | -10/Exiles | Found Potential Leg 1662 | -10/Exiles | Warned to stay clear of 0b10 Research branches 1688 | -10/Exiles | Met EX-DEC 1751 | -10/Exiles | Discovered new exit (range 14) 1828 | -10/Exiles | Visited The Gauntlet 1966 | -10/Exiles | Build established: Mutant 2032 | -10/Exiles | Left Exiles lab with Potential Leg 2032 | -10/Exiles | Entered Mines 2263 | -9/Mines | Discovered new exit (range 15) 2294 | -9/Mines | Entered Materials 2294 | -8/Materials | Evolved 4 slots: Propulsion x1, Utility x3 2590 | -8/Materials | Build established: Scavenger-Mutant 3032 | -8/Materials | Build established: Mutant 3924 | -8/Materials | Discovered new exit (range 8) 3992 | -8/Materials | Entered Factory 3992 | -7/Factory | Evolved 2 slots: Propulsion x1, Utility x1 4102 | -7/Factory | Repaired Hvy. Assault Cannon? 4387 | -7/Factory | Lost 5 parts (1p2n1u1w) 5144 | -7/Factory | Cargo convoy interrupted 5391 | -7/Factory | Fabricated Xenon Bombardment Thruster? 5655 | -7/Factory | Build established: Hacker-Sprinter 5703 | -7/Factory | Discovered new exit (range 5) 5819 | -7/Factory | Central database locked down 5905 | -7/Factory | Sucked down chute 5905 | -7/Factory | Entered Waste 5906 | -7/Waste | Met a frightened Derelict 5918 | -7/Waste | Warlord forces began an assault 5946 | -7/Waste | Spotted C-40 Crusher 5957 | -7/Waste | Allies destroyed C-40 Crusher 5961 | -7/Waste | Spotted C-40 Crusher 5962 | -7/Waste | Spotted C-40 Crusher 5965 | -7/Waste | Allies destroyed C-40 Crusher 5965 | -7/Waste | Allies destroyed C-40 Crusher 5973 | -7/Waste | Spotted C-40 Crusher 5977 | -7/Waste | Allies destroyed C-40 Crusher 5979 | -7/Waste | Spotted C-40 Crusher 5987 | -7/Waste | Allies destroyed C-40 Crusher 5991 | -7/Waste | Spotted C-40 Crusher 5997 | -7/Waste | Allies destroyed C-40 Crusher 6000 | -7/Waste | Discovered new exit (range 15) 6053 | -7/Waste | Entered Factory 6053 | -7/Factory | Accompanied by 20 allies 6184 | -7/Factory | Discovered new exit (range 10) 6303 | -7/Factory | Discovered new exit (range 16) 6354 | -7/Factory | Identified exit to Lower Caves 6496 | -7/Factory | Lost 3 allies 6607 | -7/Factory | Fabricated Imp. Hacking Suite (x1) 6679 | -7/Factory | Fabricated Imp. Hacking Suite (x1) 6744 | -7/Factory | Discovered new exit (range 15) 6772 | -7/Factory | Central database locked down 6881 | -7/Factory | Entered Lower Caves 6881 | -7/Lower Caves | Accompanied by 1 ally 6970 | -7/Lower Caves | Identified exit to Lower Caves 6985 | -7/Lower Caves | Spotted B-75 Beast 6993 | -7/Lower Caves | Encountered a Warlord checkpoint 7079 | -7/Lower Caves | Entered another Lower Caves area 7100 | -7/Lower Caves | Encountered a Warlord checkpoint 7130 | -7/Lower Caves | Learned Factory emergency access door positions 7221 | -7/Lower Caves | Attracted the attention of an 0b10 outpost 7234 | -7/Lower Caves | Attracted the attention of an 0b10 checkpoint 7269 | -7/Lower Caves | Discovered new exit (range 6) 7270 | -7/Lower Caves | Entered Data Miner 7270 | -7/Data Miner | Discovered new exit (range 6) 7276 | -7/Data Miner | Met Data Miner 7282 | -7/Data Miner | Learned location of Section 7 (-2) 7282 | -7/Data Miner | Acquired the access code to Warlord's prototype stash 7287 | -7/Data Miner | Received God Mode back door access code from Data Miner 7297 | -7/Data Miner | Entered Proximity Caves 7300 | -6/Proximity Caves | Core integrity fell below 50% 7319 | -6/Proximity Caves | Learned Factory stockpile data 7326 | -6/Proximity Caves | Learned 4 Factory zone layouts 7333 | -6/Proximity Caves | Spotted B-75 Beast 7366 | -6/Proximity Caves | Escorted by Enhanced Grunt 7390 | -6/Proximity Caves | Core integrity fell below 20% 7395 | -6/Proximity Caves | Snuck into a huge 0b10 base via the rear entrance 7397 | -6/Proximity Caves | Destroyed by S-27 Virus with Autogun Last Messages --------------- 07320_ Searching scrap... 07320_ Found Hacking Suite. 07320_ Found 50 Matter. 07320_ Found 68 Matter. 07321_ Acquired Hacking Suite. 07323_ Acquired 10 matter. 07326_ Acquired derelict log, extracted data. Data stored: Factory zone layouts (x4). 07334_ Imp. Cesium-ion Thruster destroyed. 07347_ Knocked back. 07366_ Enhanced Grunt: "Protecting LRC-V3." 07387_ Cesium-ion Thruster destroyed. 07392_ Dropped Imp. Propulsion Shielding. 07393_ Dropped Hrd. Medium Armor Plating. 07395_ Dropped Mni. Assault Cannon. 07395_ Structural Scanner destroyed. 07395_ Dropped Recalibrator. 07396_ Dropped Transmission Jammer. 07396_ Dropped Med. Storage Unit. 07397_ Imp. Cesium-ion Thruster destroyed. Map ----- +----------------------------------------------------+ | ?????????????????????????????????????????????????? | | ?????????????????????????????????????????????????? | | ?????????????????????????????????????????????????? | | ?????????????????????????????????????????????????? | | ?????????????????????????????????????????????????? | | ?????????????????????????????????????????????????? | | ?????????????????????????????????????????????????? | | ?????????????????????????????????????????????????? | | ?????????????????????????????????????????????????? | | ?????????????????????????????????????????????????? | | ?????????????????????????????????????????????????? | | ?????????????????????????????????????????????????? | | ?????????????????????????? ##????????????????????? | | ?????????????????????????? ##????????????????????? | | ?????????????????????????? ????????????????????? | | ?????????????????????????? ##????????????????????? | | ?????????????????????????? ##????????????????????? | | ?????????????????????????? ##????????????????????? | | ?????????????????????????? ##????????????????????? | | ?????????????????????????? ##????????????????????? | | ?????????????????????????? ##????????????????????? | | ???????????????????????## ##????????????????????? | | ???????????????????????##+;##????????????????????? | | ???????????????????###### ##????????????????????? | | ???????????????????###### ###???????????????????? | | ??????????????####### ##@!####??????????????????? | | ???????????########## #!! ###??????????????????? | | ################ ### #]! ##??????????????????? | | ############# ##s ##??????????????????? | | ### ss###??????????????????? | | ### s ## ??????????????????? | | ######## ### ?????????????????? | | ######## ## ##????????????? | | ??????## ## ### ##????????????? | | ??????## ###### ##????????????? | | ??????##### ## ####### ##????????????? | | ??????##### ## ##????####????????????? | | ?????????## ????####????????????? | | ?????????# ????????????????????? | | ????????? ???????????????????? | | ????????? ### ???????????????????? | | ????????? #### #### ?????????????????????? | | ???????? ###### ###? ?????????????????????? | | ????????? ##??### ##? ?????????????????????? | | ????????? ?????## ###? ??????????????????????? | | ?????????????????? ##?????????????????????????? | | ?????????????????? ##?????????????????????????? | | ?????????????????????????????????????????????????? | | ?????????????????????????????????????????????????? | | ?????????????????????????????????????????????????? | +----------------------------------------------------+ Best States ------------- Heat Dissipation 61 Energy Generation 16 Energy Capacity 290 Matter Stores 300 Matter Capacity 300 Sight Range 16 Terrain Scan Density 10 Armor Coverage 675 Resistance: KI 20 Resistance: EM 20 Evasion (%) 66 Offensive Hacking 33 Defensive Hacking 20 Item Schematics ----------------- Hvy. Assault Cannon | -7/Factory | Scanalyzed Xenon Bombardment Thruster | -7/Factory | Scanalyzed Med. Storage Unit | -7/Factory | Scanalyzed System Shield | -7/Factory | Scanalyzed Hacking Suite | -7/Factory | Scanalyzed Imp. VTOL Module | -7/Factory | Hacked Imp. Cesium-ion Thruster | -7/Factory | Scanalyzed Imp. Hacking Suite | -7/Factory | Hacked Hyp. Gauss Rifle | -7/Factory | Hacked Transmission Jammer | -7/Factory | Hacked Coolant Injector | -7/Factory | Hacked Combat Drone Bay | -7/Data Miner | Free Lgt. Regenerative Plating | -7/Data Miner | Free Biomechanical Wings | -7/Data Miner | Free Thermal Defense Suite | -7/Data Miner | Free Cld. Plasma Cannon | -7/Data Miner | Free Nuclear Pulse Array | -7/Data Miner | Free Point Defense System | -7/Data Miner | Free Lance | -7/Data Miner | Free Robot Schematics ------------------ M-28 Smith | -7/Factory | Hacked W-25 Informer | -7/Data Miner | Free G-47 Trooper | -7/Data Miner | Free L-41 Fighter | -7/Data Miner | Free Y-54 Guardian | -7/Data Miner | Free R-10 Processor | -7/Data Miner | Free Fabricated ------------ Xenon Bombardment Thruster | x2 | -7/Factory Imp. Hacking Suite | x1 | -7/Factory Imp. Hacking Suite | x1 | -7/Factory Alien Tech Used ----------------- None Achievements -------------- We Are Legion Challenges ------------ None Game ------ Seed IntegratedExperimentalPit Manual? 0 Play Time 01:37:44 Cumulative 138.3 hours Start 2024.11.01 @ 15:07:58 End 2024.11.01 @ 17:03:42 Sessions 1 Manual Loads 0 Difficulty Rogue Special Mode None Game No. 69 Rogue 6 Adventurer 63 Explorer 0 Win Type - Total 6 Types 6/0/0/0/0/0/0/0/0 Lore% 65 Gallery% 65 Achievement% 54 Wizard Run 0 Options --------- Layout 1 ASCII 0 Keyboard 1 Movement Vi Keybinds 0 Fullscreen 2 Font 28/Terminus Map View 50x43 Zoom Use 0% Tactical HUD 1 Map Filters NONE Filters NONE Steam 1 RUN: aa0f64b5-30d7-48d0-9edb-d88a87db54eb